Cogmind - Beta 14 @@@ ROGUE MODE // 2025.01.14 @ 01:24:26 Player: Peregrine Result: Self-destructed Performance ------------- Evolutions (1) 500 Regions Visited (4) 800 Robots Destroyed (40) 200 Value Destroyed (1081) 1081 Prototype IDs (4) 80 Alien Tech Used (0) 0 Bonus (8) 8 TOTAL SCORE: 2669 Bonus ------- High Alert Combat Kills 8 Cogmind --------- Core Integrity 72/400 Matter 243/300 Energy 265/265 System Corruption 0% Temperature Cool (6) Movement Flying (34) Location -9/Storage Parts ------- > --- POWER (1) -------- Improved Ion Engine > --- PROPULSION (3) --- Improved Flight Unit Improved Flight Unit Improved Flight Unit > --- UTILITY (3) ------ Signal Interpreter > --- WEAPON (2) ------- Advanced Beam Cannon Makeshift Axe > --- INVENTORY (5) ---- Aluminum Leg Aluminum Leg Flight Unit Grenade Launcher Peak State ------------ > --- POWER ------------ Improved Ion Engine > --- PROPULSION ------- Improved Flight Unit Improved Flight Unit Improved Flight Unit > --- UTILITY ---------- Improved Heat Sink Signal Interpreter > --- WEAPON ----------- Improved Heavy Laser Light Assault Rifle > --- INVENTORY -------- Aluminum Leg Aluminum Leg Heat Sink Grenade Launcher Makeshift Axe [Rating: 22] Favorites ----------- Power Heavy Ion Engine Engine Heavy Ion Engine Power Core Light Nuclear Core Propulsion Aluminum Leg Leg Aluminum Leg Wheel Wheel Flight Unit Improved Flight Unit Utility Small Storage Unit Device Improved Heat Sink Storage Small Storage Unit Processor Signal Interpreter Protection Light Armor Plating Weapon Light Assault Rifle Energy Gun Improved Heavy Laser Energy Cannon Advanced Beam Cannon Ballistic Gun Light Assault Rifle Ballistic Cannon Improved Light Cannon Launcher Grenade Launcher Slashing Weapon Makeshift Axe Build | -11 -10 -10 -9 -9 ------- Run | Yrd Mat Min Mat Sto Slots Evolved 2 | . . . 2 . Power . | . . . . . Propulsion 1 | . . . 1 . Utility 1 | . . . 1 . Weapon . | . . . . . Parts Attached 40 | . 5 2 11 22 Power 7 | . 1 . 4 2 Engine 6 | . . . 4 2 Core 1 | . 1 . . . Reactor . | . . . . . Propulsion 12 | . . . 2 10 Treads . | . . . . . Leg 6 | . . . 2 4 Wheel 3 | . . . . 3 Hover . | . . . . . Flight 3 | . . . . 3 Utility 9 | . 1 1 3 4 Device 6 | . 1 1 1 3 Storage 1 | . . . . 1 Processor 1 | . . . 1 . Hackware . | . . . . . Protection 1 | . . . 1 . Artifact . | . . . . . Weapon 12 | . 3 1 2 6 Energy Gun 2 | . 1 . . 1 Energy Cannon 2 | . . . . 2 Ballistic Gun 3 | . 2 . . 1 Ballistic Cannon 1 | . . . 1 . Launcher 2 | . . . 1 1 Special Weapon . | . . . . . Impact Weapon . | . . . . . Slashing Weapon 2 | . . 1 . 1 Piercing Weapon . | . . . . . Special Melee Weapon . | . . . . . Unidentified Prototypes 4 | . . . 1 3 Parts Lost 8 | . 2 . 2 4 Power 1 | . 1 . . . Propulsion 2 | . . . 1 1 Utility 3 | . . . 1 2 Weapon 2 | . 1 . . 1 Highest Loss Streak 2 | . 2 . 1 1 To Critical Strikes . | . . . . . Average Slot Usage (%) 88 | . 90 98 83 88 Engine 8 | . 3 . 10 11 Core 3 | . 9 14 . . Leg 22 | . 28 28 25 15 Wheel 1 | . . . . 4 Flight 4 | . . . . 12 Device 7 | . 9 14 7 5 Storage 10 | . 14 14 11 6 Processor 5 | . . . 2 11 Protection 2 | . . . 8 . Energy Gun 4 | . 9 2 . 5 Energy Cannon 1 | . . . . 3 Ballistic Gun 7 | . 14 14 3 4 Ballistic Cannon 3 | . . . 7 3 Launcher 1 | . . . 1 2 Slashing Weapon 2 | . . 10 4 . Peak Build Rating 22 | 6 12 14 14 22 Average Rating 13 | 6 9 13 11 17 On Entrance 10 | 6 6 12 13 13 Naked Turns . | . . . . . Heaviest Build 25 | 14 15 15 23 25 Greatest Support 30 | 20 20 20 30 30 Greatest Overweight (x) 1 | . . . 1 1 Average Overweight (x) . | . . . . . Largest Inventory Capacity 10 | 8 8 8 8 10 Average Capacity 7 | 8 8 8 8 7 Most Carried 8 | 6 7 8 8 8 Average Carried 6 | 6 6 7 7 5 Final Capacity 8 | 8 8 8 8 5 Final Carried 8 | 6 7 8 7 4 Class Distribution -------------------- 79% | Mutant 20% | Scavenger-Mutant Dominant Class ---------------- Mutant | -10/Materials Mutant | -10/Mines Mutant | -9/Materials Mutant | -9/Storage Resources | -11 -10 -10 -9 -9 ----------- Run | Yrd Mat Min Mat Sto Matter Collected 899 | 200 61 20 221 397 Remotely . | . . . . . Salvage Created 1252 | . 222 15 389 626 Parts 85 | . 14 3 23 45 Haulers Intercepted 4 | . . . 1 3 Recyclers Shooed 1 | . . . 1 . Parts Field Recycled . | . . . . . Retrieved Matter . | . . . . . Parts Self-Destructed . | . . . . . Prevented . | . . . . . Kills | -11 -10 -10 -9 -9 ------- Run | Yrd Mat Min Mat Sto Combat Hostiles Destroyed 29 | . 5 . 9 15 Melee 1 | . . . 1 . Guns 14 | . 5 . 2 7 Cannons 11 | . . . 4 7 AOE 3 | . . . 2 1 Classes Destroyed 8 | . 1 1 4 2 Builder 3 | . . 1 2 . Hauler 4 | . . . 1 3 Recycler 1 | . . . 1 . Operator 1 | . . . . 1 Watcher 2 | . . . 1 1 Swarmer 4 | . . . . 4 Grunt 20 | . 5 . 6 9 Sentry 5 | . . . 3 2 Best Kill Streak 8 | . 2 1 8 6 Combat Bots Only 6 | . 2 . 5 6 Max Kills in Single Turn 2 | . 1 1 2 1 Gunslinging . | . . . . . Exploded 1 | . . . 1 1 Melee 1 | . . . 1 . Uniques/NPCs Destroyed . | . . . . . Combat | -11 -10 -10 -9 -9 -------- Run | Yrd Mat Min Mat Sto Hostile Shots Fired 224 | . 47 . 47 130 Missed 65 | . 13 . 10 42 Damage Taken 1930 | . 442 . 511 977 Core 416 | . 88 . 83 245 Absorbed by Shields 24 | . . . . 24 Core Remaining (%) 82 | 100 . 64 . . Volleys Fired 129 | . 27 . 52 50 Largest 2 | . 2 . 2 2 Hottest 136 | . 100 . 69 136 Shots Fired 188 | . 47 . 58 83 Gun 102 | . 47 . 21 34 Cannon 73 | . . . 31 42 Launcher 13 | . . . 6 7 Special . | . . . . . Kinetic 115 | . 27 . 52 36 Thermal 60 | . 20 . . 40 Explosive 13 | . . . 6 7 Electromagnetic . | . . . . . Robot Hit Streak 8 | . 7 . 7 8 Robot Miss Streak 4 | . 3 . 4 4 Penetration Max . | . . . . . Secondary Targets 3 | . 2 . . 1 Max Gunslinging Chain 1 | . 1 . . 1 Shots Hit Robots 111 | . 29 1 35 46 Core Hits 69 | . 17 1 21 30 Critical Kills . | . . . . . Critical Parts Destroyed . | . . . . . Critical Strikes 2 | . . . . 2 Burn 1 | . . . . 1 Blast 1 | . . . . 1 Melee Attacks 8 | . . 1 1 6 Impact . | . . . . . Slashing 8 | . . 1 1 6 Piercing . | . . . . . Sneak Attacks 1 | . . 1 . . Combat Hostiles . | . . . . . Follow-up Attacks . | . . . . . Damage Inflicted 2496 | . 313 64 874 1245 Guns 848 | . 307 . 113 428 Cannons 852 | . . . 404 448 Explosions 615 | . . . 323 292 Melee 175 | . . 64 34 77 Ramming 6 | . 6 . . . Kinetic 996 | . 158 . 517 321 Thermal 704 | . 149 . . 555 Explosive 615 | . . . 323 292 Electromagnetic . | . . . . . Impact . | . . . . . Slashing 175 | . . 64 34 77 Piercing . | . . . . . Highest Corruption . | . . . . . Average Corruption . | . . . . . Corruption Purged . | . . . . . Corruption Blocked . | . . . . . Overload Shots . | . . . . . Overflow Damage 5 | . . . 4 1 Projectiles 1 | . . . . 1 Explosions 4 | . . . 4 . Melee . | . . . . . Knockbacks . | . . . . . Impact . | . . . . . Kinetic . | . . . . . Secondary . | . . . . . Self-Inflicted Damage . | . . . . . Shots . | . . . . . Rammed . | . . . . . Targets Rammed 3 | . 3 . . . Kicked 3 | . 3 . . . Crushed . | . . . . . Highest Temperature 503 | . 436 . 65 503 Average Temperature 154 | . 250 . 36 159 Received Heat Transfer 908 | . 258 . 207 443 Effects 10 | . 7 . . 3 Shutdowns 4 | . 1 . . 3 Energy Bleed 4 | . 4 . . . Interference 1 | . 1 . . . Short Circuit 1 | . 1 . . . Siege Activations . | . . . . . Robots Corrupted . | . . . . . Combat Hostiles . | . . . . . Parts Fried . | . . . . . Impact Corruptions . | . . . . . Robots Melted . | . . . . . Combat Hostiles . | . . . . . Parts Melted 2 | . 1 . . 1 Heat Transferred 1406 | . 444 . . 962 Parts Sabotaged . | . . . . . Parts Stolen . | . . . . . Parts Stripped . | . . . . . Power Chain Reactions . | . . . . . Alert | -11 -10 -10 -9 -9 ------- Run | Yrd Mat Min Mat Sto Peak Influence 462 | . 140 59 287 462 Initial 54 | . . 54 22 52 Average 161 | . 65 56 109 280 Maximum Alert Level 2 | . . . 1 2 Low Security (%) 71 | 100 100 100 92 32 Level 1 21 | . . . 7 48 Level 2 7 | . . . . 18 Level 3 . | . . . . . Level 4 . | . . . . . Level 5 . | . . . . . High Security . | . . . . . Max Security . | . . . . . Squads Dispatched 11 | . 2 . 2 7 Investigation 2 | . 1 . . 1 Extermination . | . . . . . Reinforcement 8 | . 1 . 2 5 Assault . | . . . . . Garrison 1 | . . . . 1 Intercept . | . . . . . Searches Triggered . | . . . . . Construction Impeded 4 | . . . 2 2 Haulers Reinforced . | . . . . . Active Scanning Responses . | . . . . . Cargo Convoy Interrupts . | . . . . . Stealth | -11 -10 -10 -9 -9 --------- Run | Yrd Mat Min Mat Sto Distress Signals 3 | . . . 3 . Communications Jammed . | . . . . . Distress Signals . | . . . . . Times Spotted 70 | . 10 . 11 49 Peak Tracking Total 18 | . 5 . 2 18 Tactical Retreats 6 | . . . . 6 Traps | -11 -10 -10 -9 -9 ------- Run | Yrd Mat Min Mat Sto Traps Triggered 3 | . 1 . . 2 Indirectly . | . . . . . Trap Hack Attempts . | . . . . . Triggered . | . . . . . Disarmed . | . . . . . Reprogrammed . | . . . . . Reused . | . . . . . Traps Extracted . | . . . . . Installed . | . . . . . Triggered . | . . . . . Machines | -11 -10 -10 -9 -9 ---------- Run | Yrd Mat Min Mat Sto Machines Disabled 2 | . . . . 2 Max in Single Turn 1 | . . . . 1 Machines Repaired . | . . . . . Machines Dismantled . | . . . . . Machines Sabotaged . | . . . . . Overloaded Fab Kills . | . . . . . Hacking | -11 -10 -10 -9 -9 --------- Run | Yrd Mat Min Mat Sto Machines Accessed 7 | . 2 . . 5 Terminals 7 | . 2 . . 5 Fabricators . | . . . . . Repair Stations . | . . . . . Recycling Units . | . . . . . Scanalyzers . | . . . . . Garrison Access . | . . . . . Total Hacks 16 | . 6 . . 10 Successful 8 | . 1 . . 7 Failed 8 | . 5 . . 3 Catastrophic 1 | . . . . 1 Database Lockouts . | . . . . . Manual 14 | . 7 . . 7 Terminals 16 | . 6 . . 10 Fabricators . | . . . . . Repair Stations . | . . . . . Recycling Units . | . . . . . Scanalyzers . | . . . . . Garrison Access . | . . . . . Terminal Hacks 7 | . . . . 7 Record 2 | . . . . 2 Open Door 2 | . . . . 2 Unreport Threat 1 | . . . . 1 Zone Layout 2 | . . . . 2 Fabricator Hacks . | . . . . . Repair Station Hacks . | . . . . . Recycling Unit Hacks . | . . . . . Scanalyzer . | . . . . . Garrison Access Hacks . | . . . . . Unauthorized Hacks 1 | . 1 . . . Terminals 1 | . 1 . . . Botnet 1 | . 1 . . . Fabricators . | . . . . . Repair Stations . | . . . . . Recycling Units . | . . . . . Scanalyzers . | . . . . . Garrison Access . | . . . . . Data Cores Recovered . | . . . . . Used . | . . . . . Hacking Detections 5 | . 2 . . 3 Full Trace Events 1 | . . . . 1 Feedback Events . | . . . . . Feedback Blocked . | . . . . . Robot Schematics Acquired . | . . . . . Robots Built . | . . . . . Authchips . | . . . . . Time . | . . . . . Total Robot Build Rating . | . . . . . Part Schematics Acquired . | . . . . . Parts Built . | . . . . . Authchips . | . . . . . Time . | . . . . . Total Part Build Rating . | . . . . . Parts Repaired . | . . . . . Time . | . . . . . Parts Recycled . | . . . . . Recycled Matter . | . . . . . Retrieved Matter . | . . . . . Retrieved Components . | . . . . . Parts Scanalyzed . | . . . . . Part Schematics Acquired . | . . . . . Parts Damaged . | . . . . . Bothacking | -11 -10 -10 -9 -9 ------------ Run | Yrd Mat Min Mat Sto Used RIF Installer . | . . . . . Robots Hacked . | . . . . . Non-combat . | . . . . . Combat . | . . . . . Robot Hacks Applied . | . . . . . Relay Couplers Released . | . . . . . Fabnet Peak Effective % . | . . . . . Robots Rewired . | . . . . . Allies Hacked . | . . . . . Hacks Repelled . | . . . . . Allies | -11 -10 -10 -9 -9 -------- Run | Yrd Mat Min Mat Sto Total Allies . | . . . . . Largest Group . | . . . . . Highest-Rated Group . | . . . . . Highest-Rated Ally . | . . . . . Total Orders . | . . . . . Ally Attacks . | . . . . . Total Damage . | . . . . . Kills . | . . . . . Allies Corrupted . | . . . . . Allies Melted . | . . . . . Intel | -11 -10 -10 -9 -9 ------- Run | Yrd Mat Min Mat Sto Robot Analysis Total . | . . . . . Derelict Logs Recovered 1 | . . 1 . . Drone Launches . | . . . . . Drone Recoveries . | . . . . . Exploration | -11 -10 -10 -9 -9 ------------- Run | Yrd Mat Min Mat Sto Turns Passed 1424 | 8 301 130 429 556 Spaces Moved 931 | 7 173 103 200 448 Core . | . . . . . Treads . | . . . . . Legs 632 | 7 173 103 200 149 Wheels 33 | . . . . 33 Hover . | . . . . . Flight 266 | . . . . 266 Fastest Speed 34 | 120 120 120 120 34 Average Speed 98 | 120 120 120 136 68 Slowest Speed 190 | 120 120 120 190 190 Overloaded Moves . | . . . . . Propulsion Burnouts . | . . . . . Robots Hopped 6 | . . . . 6 Cave-ins Triggered . | . . . . . Exploration Rate (%) 34 | 2 41 30 24 75 Regions Visited 4 Branch Regions 2 Pre-discovered Areas 1 | . . 1 . . Known Exits Taken 1 | . . . 1 . Unknown Exits Taken 3 | 1 1 1 . . Scrap Searched 1 | . . 1 . . Spaces Dug . | . . . . . Terrain Destroyed 93 | . . . 47 46 Melee . | . . . . . Projectile 5 | . . . 1 4 AOE 88 | . . . 46 42 Terrain Rammed . | . . . . . Walls Destroyed . | . . . . . Machines Disabled . | . . . . . Actions | -11 -10 -10 -9 -9 --------- Run | Yrd Mat Min Mat Sto Total 1247 | 6 223 108 302 608 Wait 61 | . 10 . 26 25 Move 915 | 6 172 102 199 436 Hop 6 | . . . . 6 Pick Up 27 | . 5 2 5 15 Fast Attach 4 | . . . 4 . Attach 20 | . 3 1 3 13 Detach 3 | . . . 1 2 Swap 16 | . 2 1 4 9 Drop 25 | . 1 1 7 16 Fire 129 | . 27 . 52 50 Melee 8 | . . 1 1 6 Ram . | . . . . . Kick 3 | . 3 . . . Crush . | . . . . . Escape Stasis 30 | . . . . 30 Rewire . | . . . . . Trap . | . . . . . Miscellaneous . | . . . . . Route ------- -11/Scrapyard -10/Materials -10/Mines -9/Materials (discovered 2 exits: *Mat / *Sto) -9/Storage (discovered 1 exit: *Mat) History --------- Turn | Location | Event 1 | -11/Scrapyard | Discovered new exit (range 3) 9 | -11/Scrapyard | Entered Materials 196 | -10/Materials | Discovered new exit (range 14) 306 | -10/Materials | Build established: Mutant 310 | -10/Materials | Entered Mines 332 | -10/Mines | A weapon hastily lodged in a ceiling crevice suddenly fell to the ground 403 | -10/Mines | Discovered new exit (range 12) 425 | -10/Mines | Learned location of Recycling (-9) 440 | -10/Mines | Entered Materials 440 | -9/Materials | Evolved 2 slots: Propulsion x1, Utility x1 765 | -9/Materials | Discovered new exit (range 13) 778 | -9/Materials | Identified exit to Materials 850 | -9/Materials | Discovered new exit (range 15) 866 | -9/Materials | Identified exit to Storage 869 | -9/Materials | Entered Storage 1353 | -9/Storage | Garrison activated, responded to threat 1365 | -9/Storage | Core integrity fell below 50% 1411 | -9/Storage | Discovered exit to Materials (range 16) 1423 | -9/Storage | Core integrity fell below 20% 1425 | -9/Storage | Self-destructed Last Messages --------------- 01366_ S-10 Pest destroyed. 01366_ K-01 Serf collects debris. 01369_ Acquired 10 matter. 01370_ Dropped Adv. Beam Cannon. 01370_ Acquired Flight Unit. 01371_ Power failure, Imp. Ion Engine shutdown. 01386_ Connecting with Terminal... >>Layout(Zone) Retrieving Zone 5B layout... Downloaded map data. 01407_ ALERT: Hostiles spotted, dispatching reinforcements to Terminal S009. 01411_ EXIT=FOUND: MATERIALS 01419_ Imp. Heat Sink destroyed. 01421_ Connecting with Terminal... >>Layout(Zone) Retrieving Zone 6I layout... Downloaded map data. 01421_ ALERT: Suspicious activity at Terminal S005. Dispatching Investigation squad. Map ----- +----------------------------------------------------+ | #?????# #????# #????????????????????? | | #?????# #### ###### ###??????????????????? | | #?????# #??# #??????????????????? | | ##???## ##?# #??????????????????? | | ##### #?# #??????????????????? | | #?############+##??????????????????? | | #??????????#T #??????????????????? | | ##### #??????????### ##??????????????????? | | ##???## ###???????????#! !#??????????????????? | | #?##### #?????????????#! !#??????????????????? | | #?#"""# #?????????????#! !#??????????????????? | | ###"T"#/####??????????#! !#??????????????????? | | ## #??????????#####??????????????????? | | # ####????????????##########????????? | | # """#????????????# ???????? | | + """ """ R"#????????????# #???????? | | # """ """ """#????????????# #???????? | | ## """ """ ####????????????# #???????? | | ?# #??????????????# """ """ #???????? | | ?# ##??????????????# """ """ #???????? | | ############???????????????# """ """ #???????? | | #???????????????????# #???????? | | "" """ #########################+######??????? | | "" """ # ^ #??????? | | "" """ + YY Yg g g < #??????? | | # ga Yg @ a gg #??????? | | #/###+###################/######??????? | | # #????????# #???????? | | # #????????## #???????? | | ##### ## #?????????# """ """ ##??????? | | ????#### """ """ #?????????# """ """ "#??????? | | ???????# """ """ #?????????# """ """ T#??????? | | ???????# """ """ #?????????# "#??????? | | ???????# #?????????# ##??????? | | ???????# = #?????????# = #???????? | | ????????#########??????????###########???????? | | | | | | | | | | | | | | | | | | | | | | | | | | | | | +----------------------------------------------------+ Best States ------------- Heat Dissipation 52 Energy Generation 14 Energy Capacity 280 Matter Stores 300 Matter Capacity 300 Sight Range 16 Terrain Scan Density 10 Armor Coverage 150 Evasion (%) 63 Item Schematics ----------------- None Robot Schematics ------------------ None Fabricated ------------ Nothing Alien Tech Used ----------------- None Achievements -------------- None Challenges ------------ None Game ------ Seed ThunderRegenerativeGenerator Manual? 0 Play Time 00:26:52 Cumulative 90.7 hours Start 2025.01.14 @ 00:59:17 End 2025.01.14 @ 01:24:26 Sessions 1 Manual Loads 0 Difficulty Rogue Special Mode None Game No. 108 Rogue 93 Adventurer 15 Explorer 0 Win Type - Total 1 Types 0/0/1/0/0/0/0/0/0 Lore% 22 Gallery% 58 Achievement% 48 Wizard Run 0 Options --------- Layout 0 ASCII 0 Keyboard 0 Movement Mouse Keybinds 0 Fullscreen 2 Font 36/Smallcaps Map View 76x50 Zoom Use 0% Tactical HUD 1 Map Filters NONE Filters NONE Steam 1 RUN: a14692d5-7d3c-4da2-826c-59569f355348